Cogmind - Beta 10.1 @@@ ROGUE MODE // 2020.10.11 @ 22:05:34 Player: may2ever Result: Self-destructed Performance ------------- Evolutions (5) 2500 Regions Visited (10) 2000 Robots Destroyed (167) 835 Value Destroyed (5459) 5459 Prototype IDs (12) 240 Alien Tech Used (0) 0 Bonus (3226) 3226 TOTAL SCORE: 14260 Bonus ------- High Alert Combat Kills 449 Follower Combat Kills 2122 Built Enhanced Grunts 300 Met R17 at Cetus 500 Friendly Fire -145 Cogmind --------- Core Integrity 965/1000 Matter 290/300 Energy 350/350 System Corruption 0% Temperature Cool (0) Movement Treading (160) Location -5/Factory Parts ------- > --- POWER (1) -------- Quantum Reactor > --- PROPULSION (4) --- Improved Medium Treads Centrium Heavy Treads > --- UTILITY (10) ----- Advanced Heat Sink Advanced Heat Sink Advanced Cooling System Large Storage Unit Advanced Signal Interpreter Experimental Targeting Computer Experimental Targeting Computer Weapon Cycler Centrium Medium Armor Plating Improved Hacking Suite > --- WEAPON (2) ------- Improved KE Penetrator Hypervelocity Gauss Cannon > --- INVENTORY (10) --- Quantum Reactor Centrium Heavy Treads High-capacity Matter Pod (200) Centrium Medium Armor Plating Centrium Medium Armor Plating Improved EM Pulse Cannon KE Penetrator Enhanced Gauss Cannon Phasing Sabre Peak State ------------ > --- POWER ------------ Quantum Reactor > --- PROPULSION ------- Improved Medium Treads Centrium Heavy Treads > --- UTILITY ---------- Advanced Heat Sink Advanced Heat Sink Advanced Cooling System Large Storage Unit Advanced Signal Interpreter Experimental Targeting Computer Experimental Targeting Computer Weapon Cycler Centrium Medium Armor Plating Improved Hacking Suite > --- WEAPON ----------- Improved KE Penetrator Hypervelocity Gauss Cannon > --- INVENTORY -------- Quantum Reactor Centrium Heavy Treads High-capacity Matter Pod Centrium Medium Armor Plating Centrium Medium Armor Plating Improved EM Pulse Cannon KE Penetrator Enhanced Gauss Cannon Phasing Sabre [Rating: 102] Favorites ----------- Power Improved Ion Engine Engine Improved Ion Engine Power Core Neutrino Core Reactor Quantum Reactor Propulsion Improved Medium Treads Treads Improved Medium Treads Leg Aluminum Leg Wheel Wheel Hover Unit Combat Airjet Utility Large Storage Unit Device Advanced Heat Sink Storage Large Storage Unit Processor Experimental Targeting Computer Hackware Improved Hacking Suite Protection Centrium Medium Armor Plating Weapon Bore Cannon Energy Gun Lightning Gun Energy Cannon Proton Cannon Ballistic Gun Heavy Assault Rifle Ballistic Cannon Bore Cannon Launcher Rocket Launcher Impact Weapon Flail Slashing Weapon Katana Build | -11 -10 -10 -9 -8 -7 -6 -6 -6 -6 -5 ------- Run | Scr Mat Min Mat Mat Fac Fac Ext Cet Arc Fac Slots Evolved 10 | . . . 2 2 2 2 . . . 2 Power . | . . . . . . . . . . . Propulsion 2 | . . . . . 1 . . . . 1 Utility 8 | . . . 2 2 1 2 . . . 1 Weapon . | . . . . . . . . . . . Parts Attached 159 | 2 . 8 19 34 27 34 22 7 1 5 Power 21 | . . 1 1 8 2 5 3 1 . . Engine 18 | . . 1 1 8 1 5 2 . . . Core 2 | . . . . . 1 . 1 . . . Reactor 1 | . . . . . . . . 1 . . Propulsion 30 | 2 . 2 4 6 5 5 4 2 . . Treads 25 | 2 . . 1 6 5 5 4 2 . . Leg 2 | . . . 2 . . . . . . . Wheel 1 | . . . 1 . . . . . . . Hover 2 | . . 2 . . . . . . . . Flight . | . . . . . . . . . . . Utility 56 | . . 2 6 9 10 15 9 1 . 4 Device 24 | . . . . 3 6 5 7 . . 3 Storage 6 | . . 1 4 1 . . . . . . Processor 8 | . . . . 1 2 4 1 . . . Hackware 1 | . . . . . . . . . . 1 Protection 17 | . . 1 2 4 2 6 1 1 . . Artifact . | . . . . . . . . . . . Weapon 52 | . . 3 8 11 10 9 6 3 1 1 Energy Gun 11 | . . 2 . . 5 3 . 1 . . Energy Cannon 12 | . . . 2 4 3 3 . . . . Ballistic Gun 13 | . . . 5 2 2 . 3 1 . . Ballistic Cannon 9 | . . . . . . 3 3 1 1 1 Launcher 4 | . . 1 . 3 . . . . . . Special Weapon . | . . . . . . . . . . . Impact Weapon 2 | . . . 1 1 . . . . . . Slashing Weapon 1 | . . . . 1 . . . . . . Piercing Weapon . | . . . . . . . . . . . Special Melee Weapon . | . . . . . . . . . . . Unidentified Prototypes 12 | . . . . 2 2 4 . 4 . . Parts Lost 81 | . . 5 11 24 13 13 14 . . 1 Power 12 | . . 1 1 5 1 2 2 . . . Propulsion 17 | . . 1 4 2 3 4 3 . . . Utility 31 | . . . 3 10 6 6 5 . . 1 Weapon 21 | . . 3 3 7 3 1 4 . . . Highest Loss Streak 5 | . . 5 5 5 5 3 5 . . 1 Average Slot Usage (%) 87 | . 85 75 91 79 72 96 93 92 92 86 Engine 4 | . 14 10 10 5 2 5 4 . . . Treads 14 | . 28 5 1 16 19 18 18 13 13 11 Leg 1 | . . . 8 . . . . . . . Hover 1 | . . 20 7 . . . . . . . Device 15 | . . . . 3 13 21 24 27 26 24 Storage 13 | . 14 16 31 27 9 6 6 6 6 5 Processor 9 | . . . . 1 9 12 17 20 20 17 Protection 8 | . . 6 7 11 3 16 7 5 6 5 Energy Gun 1 | . 14 3 . . 6 3 . . . . Energy Cannon 2 | . . . 3 3 3 3 1 . . . Ballistic Gun 5 | . 14 3 15 6 . 1 7 6 6 5 Ballistic Cannon 2 | . . . . . . 4 4 4 5 5 Naked Turns . | . . . . . . . . . . . Heaviest Build 78 | 12 12 15 51 55 45 78 71 54 62 64 Greatest Support 110 | 40 40 44 44 40 76 88 80 110 110 110 Greatest Overweight (x) 5 | . . 1 5 2 2 1 1 . . . Average Overweight (x) . | . . . . 1 . . . . . . Largest Inventory Capacity 18 | 6 6 8 16 18 16 10 10 10 10 10 Average Capacity 11 | 6 6 6 9 17 11 10 10 10 10 10 Most Carried 16 | 6 6 6 8 16 13 10 10 10 10 10 Average Carried 9 | 6 5 5 6 13 10 9 9 9 9 9 Final Capacity 16 | 6 6 6 16 16 10 10 10 10 10 10 Final Carried 12 | 6 6 6 8 12 9 10 10 10 10 10 Class Distribution -------------------- 53% | Mutant 23% | Scavenger-Mutant 17% | Commander-Mutant 5% | Skirmisher Dominant Class ---------------- Mutant | -10/Materials Mutant | -10/Mines Mutant | -9/Materials Mutant | -8/Materials Mutant | -7/Factory Scavenger-Mutant | -6/Factory Scavenger-Mutant | -6/Extension Commander-Mutant | -6/Cetus Commander-Mutant | -6/Archives Scavenger-Mutant | -5/Factory Resources | -11 -10 -10 -9 -8 -7 -6 -6 -6 -6 -5 ----------- Run | Scr Mat Min Mat Mat Fac Fac Ext Cet Arc Fac Matter Collected 4055 | 192 . 204 553 938 175 643 815 193 90 252 Remotely . | . . . . . . . . . . . Salvage Created 5823 | 96 . 106 753 1540 488 1289 897 . 244 410 Parts 324 | 2 . 5 50 103 34 59 31 . 13 27 Haulers Intercepted 2 | . . . 1 . . 1 . . . . Recyclers Shooed 4 | . . . . 2 . 1 1 . . . Parts Field Recycled . | . . . . . . . . . . . Retrieved Matter . | . . . . . . . . . . . Parts Self-Destructed . | . . . . . . . . . . . Prevented . | . . . . . . . . . . . Kills | -11 -10 -10 -9 -8 -7 -6 -6 -6 -6 -5 ------- Run | Scr Mat Min Mat Mat Fac Fac Ext Cet Arc Fac Combat Hostiles Destroyed 127 | . . 13 18 39 12 21 16 . 3 5 Melee 9 | . . . 4 4 1 . . . . . Guns 43 | . . 1 12 8 7 3 7 . 1 4 Cannons 40 | . . . 2 8 4 14 9 . 2 1 AOE 31 | . . 12 . 18 . 1 . . . . Classes Destroyed 18 | 1 . 3 5 4 2 1 . . . 2 Worker 9 | . . . . 1 . 7 . . . 1 Builder 10 | . . 1 . 5 . 3 . . . 1 Tunneler 2 | . . . . 1 . . . . . 1 Hauler 2 | . . . 1 . . 1 . . . . Recycler 3 | 1 . 1 . 1 . . . . . . Operator 2 | . . . . 1 . . . . 1 . Watcher 12 | . . . 3 4 3 . 1 . . 1 Swarmer 32 | . . 3 7 13 9 . . . . . Grunt 43 | . . . 6 14 . 12 11 . . . Brawler 2 | . . . . 1 . 1 . . . . Duelist 4 | . . . 1 3 . . . . . . Protector 1 | . . . . . . . . . . 1 Sentry 22 | . . . 4 8 1 1 3 . 3 2 Specialist 1 | . . . . . . . . . . 1 Hunter 7 | . . . . . 1 4 1 . . 1 Programmer 3 | . . . . . 1 2 . . . . Behemoth 2 | . . . . . . 1 1 . . . Assembled 10 | . . 10 . . . . . . . . Best Kill Streak 10 | 1 . 7 5 10 5 10 3 . 2 4 Combat Bots Only 7 | . . 6 5 7 4 6 3 . 2 4 Max Kills in Single Turn 6 | 1 . 3 1 4 1 6 1 . 1 2 Gunslinging . | . . . . . . . . . . . Exploded 4 | . . 3 . 4 . 1 . . . . Melee 1 | . . . 1 1 1 . . . . . Uniques/NPCs Destroyed . | . . . . . . . . . . . Combat | -11 -10 -10 -9 -8 -7 -6 -6 -6 -6 -5 -------- Run | Scr Mat Min Mat Mat Fac Fac Ext Cet Arc Fac Damage Taken 12914 | . . 793 1512 3122 2114 3150 1873 99 . 251 Core 1875 | . . 233 339 327 334 420 187 . . 35 Absorbed by Shields 208 | . . . . 54 31 . 82 41 . . Core Remaining (%) 40 | 100 . 6 15 40 52 . . . 28 . Volleys Fired 450 | . . 24 52 132 46 104 62 7 4 19 Largest 2 | . . 2 2 2 2 2 2 2 2 2 Hottest 160 | . . 70 91 124 160 130 114 85 92 92 Shots Fired 617 | . . 30 95 146 50 139 96 14 9 38 Gun 324 | . . 15 76 73 30 48 51 7 5 19 Cannon 255 | . . . 19 50 20 91 45 7 4 19 Launcher 38 | . . 15 . 23 . . . . . . Special . | . . . . . . . . . . . Kinetic 375 | . . 9 76 73 . 60 96 14 9 38 Thermal 80 | . . 6 12 9 31 22 . . . . Explosive 38 | . . 15 . 23 . . . . . . Electromagnetic 124 | . . . 7 41 19 57 . . . . Robot Hit Streak 26 | . . 9 16 13 9 21 26 17 12 14 Robot Miss Streak 8 | . . 2 5 3 3 5 2 8 . 2 Penetration Max 1 | . . . . . . . 1 1 . 1 Secondary Targets 3 | . . 1 2 . . . . . . . Max Gunslinging Chain 1 | . . 1 1 . . . . . . . Shots Hit Robots 501 | . . 19 83 123 30 111 87 12 8 28 Core Hits 326 | 1 . 25 27 84 31 57 67 15 7 12 Critical Hits 50 | . . . 1 . . 4 23 3 2 17 Critical Kills 15 | . . . . . . 2 5 . 2 6 Critical Parts Destroyed 24 | . . . . . . 2 13 3 . 6 Melee Attacks 56 | . . . 30 26 . . . . . . Impact 48 | . . . 30 18 . . . . . . Slashing 8 | . . . . 8 . . . . . . Piercing . | . . . . . . . . . . . Sneak Attacks 1 | . . . . 1 . . . . . . Combat Hostiles . | . . . . . . . . . . . Follow-up Attacks . | . . . . . . . . . . . Damage Inflicted 15499 | 19 . 950 1501 4015 849 4425 2456 312 200 772 Guns 5196 | . . 108 766 904 535 689 1357 205 133 499 Cannons 5353 | . . . 306 936 265 2340 1067 107 67 265 Explosions 3902 | . . 842 . 1664 . 1396 . . . . Melee 925 | . . . 429 496 . . . . . . Ramming 123 | 19 . . . 15 49 . 32 . . 8 Kinetic 6755 | . . 39 766 904 . 1346 2424 312 200 764 Thermal 2033 | . . 69 205 340 620 799 . . . . Explosive 3506 | . . 842 . 1468 . 1196 . . . . Electromagnetic 2157 | . . . 101 792 180 1084 . . . . Impact 676 | . . . 429 247 . . . . . . Slashing 249 | . . . . 249 . . . . . . Piercing . | . . . . . . . . . . . Highest Corruption 9 | . . . . 3 8 9 9 9 9 . Average Corruption 6 | . . . . 3 3 6 9 9 9 . Corruption Purged . | . . . . . . . . . . . Effects 143 | . . . . 21 5 25 63 17 12 . Message Errors 32 | . . . . 6 1 6 14 4 1 . Matter Fused 39 | . . . . 4 2 4 18 6 5 . Heat Flow Errors 13 | . . . . 2 . 1 6 3 1 . Energy Discharges 14 | . . . . 3 1 3 4 . 3 . Parts Rejected 1 | . . . . . . . 1 . . . Data Loss (minor) 7 | . . . . 2 . 3 1 1 . . Data Loss (major) 8 | . . . . . . 4 3 1 . . Misfires 2 | . . . . . . . . 1 1 . Targeting Errors 21 | . . . . 3 1 3 13 . 1 . Weapon Failures 6 | . . . . 1 . 1 3 1 . . Overload Shots 11 | . . . . . 11 . . . . . Overflow Damage 367 | . . 53 14 70 6 219 5 . . . Projectiles 60 | . . . . 36 6 13 5 . . . Explosions 276 | . . 53 . 17 . 206 . . . . Melee 31 | . . . 14 17 . . . . . . Knockbacks 29 | . . . 3 . . 21 3 2 . . Impact 3 | . . . 3 . . . . . . . Kinetic 21 | . . . . . . 16 3 2 . . Secondary 5 | . . . . . . 5 . . . . Self-Inflicted Damage 321 | . . 40 . 171 . 110 . . . . Shots 13 | . . 2 . 9 . 2 . . . . Rammed 38 | 12 . . . 4 18 . 3 . . 1 Targets Rammed 42 | 13 . . . 5 18 . 4 . . 2 Kicked . | . . . . . . . . . . . Crushed 4 | 1 . . . 1 . . 1 . . 1 Highest Temperature 426 | . . 40 222 426 325 256 177 195 160 . Average Temperature 62 | . . 20 61 93 66 28 51 106 87 . Received Heat Transfer 2841 | . . . 357 1053 142 675 573 17 . 24 Effects 1 | . . . . 1 . . . . . . Shutdowns 1 | . . . . 1 . . . . . . Siege Activations 2 | . . . . . . . . . 2 . Total Turns 14 | . . . . . . . . . 14 . Longest Duration 9 | . . . . . . . . . 9 . Robots Corrupted 4 | . . . . 1 . 3 . . . . Combat Hostiles 4 | . . . . 1 . 3 . . . . Parts Fried 23 | . . . 2 12 . 8 1 . . . Impact Corruptions 3 | . . . 2 . . . 1 . . . Robots Melted . | . . . . . . . . . . . Combat Hostiles . | . . . . . . . . . . . Parts Melted 4 | . . . 2 . 1 1 . . . . Heat Transferred 2868 | . . 162 370 559 850 927 . . . . Parts Sabotaged . | . . . . . . . . . . . Parts Stolen . | . . . . . . . . . . . Parts Stripped . | . . . . . . . . . . . Power Chain Reactions 3 | . . . . 1 . 2 . . . . Missiles Intercepted . | . . . . . . . . . . . Alert | -11 -10 -10 -9 -8 -7 -6 -6 -6 -6 -5 ------- Run | Scr Mat Min Mat Mat Fac Fac Ext Cet Arc Fac Peak Influence 929 | 5 3 95 294 647 251 543 464 577 335 929 Initial 259 | . 3 . 37 78 207 91 224 259 150 116 Average 268 | 3 3 34 154 413 145 261 292 407 312 351 Maximum Alert Level 3 | . . . 1 2 1 2 2 2 1 3 Low Security (%) 40 | 100 100 100 82 16 57 52 10 . 4 30 Level 1 37 | . . . 17 26 42 8 82 67 95 40 Level 2 21 | . . . . 56 . 38 6 32 . 14 Level 3 1 | . . . . . . . . . . 15 Level 4 . | . . . . . . . . . . . Level 5 . | . . . . . . . . . . . High Security . | . . . . . . . . . . . Max Security . | . . . . . . . . . . . Squads Dispatched 25 | . . . 1 10 1 4 5 . . 4 Investigation 5 | . . . 1 1 . 1 2 . . . Extermination 3 | . . . . . 1 2 . . . . Reinforcement 8 | . . . . 2 . 1 3 . . 2 Assault 4 | . . . . 3 . . . . . 1 Garrison 5 | . . . . 4 . . . . . 1 Intercept . | . . . . . . . . . . . Construction Impeded 4 | . . . . 1 . . 2 . . 1 Haulers Reinforced 1 | . . . . . . 1 . . . . Stealth | -11 -10 -10 -9 -8 -7 -6 -6 -6 -6 -5 --------- Run | Scr Mat Min Mat Mat Fac Fac Ext Cet Arc Fac Distress Signals 15 | . . . . 6 2 2 1 2 . 2 Communications Jammed . | . . . . . . . . . . . Distress Signals . | . . . . . . . . . . . Times Spotted 249 | . . 17 24 78 25 28 41 12 4 20 Peak Tracking Total 10 | . . 8 6 10 5 7 5 5 3 7 Tactical Retreats 25 | . . . . 16 1 4 4 . . . Traps | -11 -10 -10 -9 -8 -7 -6 -6 -6 -6 -5 ------- Run | Scr Mat Min Mat Mat Fac Fac Ext Cet Arc Fac Traps Triggered 3 | . . . . . . 3 . . . . Indirectly . | . . . . . . . . . . . Trap Hack Attempts . | . . . . . . . . . . . Triggered . | . . . . . . . . . . . Disarmed . | . . . . . . . . . . . Reprogrammed . | . . . . . . . . . . . Reused . | . . . . . . . . . . . Traps Extracted . | . . . . . . . . . . . Installed . | . . . . . . . . . . . Triggered . | . . . . . . . . . . . Machines | -11 -10 -10 -9 -8 -7 -6 -6 -6 -6 -5 ---------- Run | Scr Mat Min Mat Mat Fac Fac Ext Cet Arc Fac Machines Disabled 24 | . . 1 1 1 1 16 2 . 1 1 Max in Single Turn 5 | . . 1 1 1 1 5 1 . 1 . Garrison Access 2 | . . . . 1 . . . . . 1 Machines Sabotaged . | . . . . . . . . . . . Garrisons Compromised . | . . . . . . . . . . . Overloaded Fab Kills . | . . . . . . . . . . . Fab Network Shutdowns . | . . . . . . . . . . . Hacking | -11 -10 -10 -9 -8 -7 -6 -6 -6 -6 -5 --------- Run | Scr Mat Min Mat Mat Fac Fac Ext Cet Arc Fac Machines Accessed 30 | . . . 5 6 2 2 11 2 . 2 Terminals 26 | . . . 4 5 2 2 11 2 . . Fabricators 1 | . . . . . . . . . . 1 Repair Stations . | . . . . . . . . . . . Recycling Units 1 | . . . 1 . . . . . . . Scanalyzers . | . . . . . . . . . . . Garrison Access 2 | . . . . 1 . . . . . 1 Total Hacks 70 | . . . 15 17 3 3 27 2 . 3 Successful 34 | . . . 3 10 2 2 13 1 . 3 Failed 36 | . . . 12 7 1 1 14 1 . . Catastrophic 9 | . . . 1 3 1 1 3 . . . Database Lockouts . | . . . . . . . . . . . Manual 50 | . . . 12 15 3 3 14 2 1 . Terminals 64 | . . . 14 15 3 3 27 2 . . Fabricators 2 | . . . . . . . . . . 2 Repair Stations . | . . . . . . . . . . . Recycling Units 1 | . . . 1 . . . . . . . Scanalyzers . | . . . . . . . . . . . Garrison Access 3 | . . . . 2 . . . . . 1 Terminal Hacks 18 | . . . 1 4 1 . 11 1 . . Record 2 | . . . . . . . 1 1 . . Part Schematic 1 | . . . . . . . 1 . . . Open Door 6 | . . . . . . . 6 . . . Branch Access Points 1 | . . . 1 . . . . . . . Alert Level 5 | . . . . 2 1 . 2 . . . Unreport Threat 2 | . . . . 1 . . 1 . . . Locate Traps 1 | . . . . 1 . . . . . . Fabricator Hacks 2 | . . . . . . . . . . 2 Load Schematic 1 | . . . . . . . . . . 1 Build 1 | . . . . . . . . . . 1 Repair Station Hacks . | . . . . . . . . . . . Recycling Unit Hacks . | . . . . . . . . . . . Scanalyzer . | . . . . . . . . . . . Garrison Access Hacks 2 | . . . . 1 . . . . . 1 Seal Access 2 | . . . . 1 . . . . . 1 Unauthorized Hacks 12 | . . . 2 5 1 2 2 . . . Terminals 11 | . . . 1 5 1 2 2 . . . Track 3 | . . . . 2 . 1 . . . . Botnet 8 | . . . 1 3 1 1 2 . . . Fabricators . | . . . . . . . . . . . Repair Stations . | . . . . . . . . . . . Recycling Units 1 | . . . 1 . . . . . . . Tunnel 1 | . . . 1 . . . . . . . Scanalyzers . | . . . . . . . . . . . Garrison Access . | . . . . . . . . . . . Data Cores Recovered 1 | . . . . 1 . . . . . . Used . | . . . . . . . . . . . Hacking Detections 22 | . . . 4 4 2 2 8 2 . . Full Trace Events 3 | . . . . 1 . . 2 . . . Feedback Events . | . . . . . . . . . . . Feedback Blocked . | . . . . . . . . . . . Robot Schematics Acquired . | . . . . . . . . . . . Robots Built . | . . . . . . . . . . . Matter . | . . . . . . . . . . . Time . | . . . . . . . . . . . Total Robot Build Rating . | . . . . . . . . . . . Part Schematics Acquired 1 | . . . . . . . 1 . . . Parts Built 1 | . . . . . . . . . . 1 Matter 190 | . . . . . . . . . . 190 Time 47 | . . . . . . . . . . 47 Total Part Build Rating 5 | . . . . . . . . . . 5 Parts Repaired . | . . . . . . . . . . . Time . | . . . . . . . . . . . Parts Recycled . | . . . . . . . . . . . Recycled Matter . | . . . . . . . . . . . Retrieved Matter . | . . . . . . . . . . . Retrieved Components . | . . . . . . . . . . . Parts Scanalyzed . | . . . . . . . . . . . Part Schematics Acquired . | . . . . . . . . . . . Parts Damaged . | . . . . . . . . . . . Bothacking | -11 -10 -10 -9 -8 -7 -6 -6 -6 -6 -5 ------------ Run | Scr Mat Min Mat Mat Fac Fac Ext Cet Arc Fac Used RIF Installer . | . . . . . . . . . . . Robots Hacked . | . . . . . . . . . . . Non-combat . | . . . . . . . . . . . Combat . | . . . . . . . . . . . Robot Hacks Applied . | . . . . . . . . . . . Relay Couplers Released . | . . . . . . . . . . . Robots Rewired 20 | . . . . . . . 20 . . . Allies Hacked . | . . . . . . . . . . . Hacks Repelled . | . . . . . . . . . . . Allies | -11 -10 -10 -9 -8 -7 -6 -6 -6 -6 -5 -------- Run | Scr Mat Min Mat Mat Fac Fac Ext Cet Arc Fac Total Allies 31 | . . . . . . . 26 5 . . Largest Group 14 | . . . . . . . 12 14 10 8 Highest-Rated Group 850 | . . . . . . . 480 850 722 541 Highest-Rated Ally 156 | . . . . . . . 156 156 144 94 Total Orders . | . . . . . . . . . . . Ally Attacks 354 | . . . . . . . 151 106 11 86 Total Damage 8779 | . . . . . . . 3150 2458 411 2760 Kills 52 | . . . . . . . 20 13 1 18 Allies Corrupted . | . . . . . . . . . . . Allies Melted . | . . . . . . . . . . . Intel | -11 -10 -10 -9 -8 -7 -6 -6 -6 -6 -5 ------- Run | Scr Mat Min Mat Mat Fac Fac Ext Cet Arc Fac Robot Analysis Total . | . . . . . . . . . . . Derelict Logs Recovered . | . . . . . . . . . . . Drone Launches . | . . . . . . . . . . . Drone Recoveries . | . . . . . . . . . . . Exploration | -11 -10 -10 -9 -8 -7 -6 -6 -6 -6 -5 ------------- Run | Scr Mat Min Mat Mat Fac Fac Ext Cet Arc Fac Turns Passed 9061 | 255 76 260 999 1638 1134 1705 1461 477 325 731 Spaces Moved 4447 | 74 47 227 566 628 556 844 652 268 176 409 Core 9 | . . 7 2 . . . . . . . Treads 3738 | 74 47 25 59 628 556 844 652 268 176 409 Legs 184 | . . . 184 . . . . . . . Wheels 52 | . . . 52 . . . . . . . Hover 464 | . . 195 269 . . . . . . . Flight . | . . . . . . . . . . . Fastest Speed 76 | 160 160 76 76 170 163 160 160 160 160 160 Average Speed 157 | 160 160 86 119 191 168 162 161 160 160 160 Slowest Speed 300 | 160 160 160 300 210 210 185 180 160 160 160 Overloaded Moves . | . . . . . . . . . . . Propulsion Burnouts . | . . . . . . . . . . . Robots Hopped . | . . . . . . . . . . . Cave-ins Triggered 2 | . . . 1 . 1 . . . . . Exploration Rate (%) 42 | 7 5 35 43 69 23 22 79 69 94 20 Regions Visited 10 Branch Regions 4 Pre-discovered Areas 2 | . . 1 1 . . . . . . . Known Exits Taken 6 | . . . . 1 1 1 1 1 1 . Unknown Exits Taken 4 | 1 1 1 1 . . . . . . . Scrap Searched 2 | . . 2 . . . . . . . . Spaces Dug 21 | . . . 4 14 2 1 . . . . Terrain Destroyed 314 | . . 86 4 151 10 42 9 . 5 7 Melee 4 | . . . 4 . . . . . . . Projectile 37 | . . . . . 10 6 9 . 5 7 AOE 273 | . . 86 . 151 . 36 . . . . Terrain Rammed . | . . . . . . . . . . . Walls Destroyed . | . . . . . . . . . . . Machines Disabled . | . . . . . . . . . . . Actions | -11 -10 -10 -9 -8 -7 -6 -6 -6 -6 -5 --------- Run | Scr Mat Min Mat Mat Fac Fac Ext Cet Arc Fac Total 5863 | 202 48 260 744 893 691 1069 983 306 212 455 Wait 382 | 114 . . 63 47 25 56 24 8 31 14 Move 4436 | 73 46 226 565 627 554 843 651 267 175 409 Hop . | . . . . . . . . . . . Pick Up 79 | . 1 2 11 18 13 15 11 5 1 2 Fast Attach 62 | . . 4 8 7 11 15 10 4 . 3 Attach 52 | . . 2 6 17 11 7 7 . 1 1 Detach 2 | . . . . 1 . 1 . . . . Swap 45 | 2 . 2 5 10 5 12 5 3 . 1 Drop 58 | . 1 . 4 3 7 16 11 12 . 4 Fire 450 | . . 24 52 132 46 104 62 7 4 19 Melee 56 | . . . 30 26 . . . . . . Ram . | . . . . . . . . . . . Kick . | . . . . . . . . . . . Crush 42 | 13 . . . 5 18 . 4 . . 2 Escape Stasis 1 | . . . . . 1 . . . . . Rewire 198 | . . . . . . . 198 . . . Trap . | . . . . . . . . . . . Miscellaneous . | . . . . . . . . . . . Route ------- -11/Scrapyard -10/Materials -10/Mines -9/Materials (discovered 2 exits: *Mat / Min) -8/Materials (discovered 3 exits: *Fac x2 / [*Sto]) -7/Factory -6/Factory -6/Extension (discovered 3 exits: *Fac x2 / *Cet) -6/Cetus (discovered 2 exits: *Fac / *Arc) -6/Archives (discovered 3 exits: *Fac / *Hub x2) -5/Factory History --------- Turn | Location | Event 4 | -11/Scrapyard | Discovered new exit (range 2) 256 | -11/Scrapyard | Entered Materials 256 | -10/Materials | Discovered new exit (range 10) 317 | -10/Materials | Build established: Mutant 332 | -10/Materials | Entered Mines 333 | -10/Mines | Assembled infested the area 338 | -10/Mines | Assisted by a Guerilla fighting off Assembled 392 | -10/Mines | Received a Rocket Launcher from a helpful Derelict 400 | -10/Mines | Core integrity fell below 50% 424 | -10/Mines | Core integrity fell below 20% 427 | -10/Mines | Lost 5 parts (1p1n3w) 506 | -10/Mines | Discovered new exit (range 9) 507 | -10/Mines | Learned location of Storage (-8) 592 | -10/Mines | Entered Materials 592 | -9/Materials | Evolved 2 slots: Utility x2 730 | -9/Materials | Crushed by falling debris 953 | -9/Materials | Core integrity fell below 50% 974 | -9/Materials | Lost 5 parts (1p2n1u1w) 1147 | -9/Materials | Discovered new exit (range 10) 1372 | -9/Materials | Core integrity fell below 20% 1410 | -9/Materials | Lost 4 parts (2n1u1w) 1430 | -9/Materials | Identified exit to Mines 1591 | -9/Materials | Entered another Materials area 1591 | -8/Materials | Evolved 2 slots: Utility x2 1722 | -8/Materials | Garrison activated, responded to threat 1879 | -8/Materials | Garrison activated, responded to threat 1995 | -8/Materials | Lost 4 parts (1p2u1w) 2334 | -8/Materials | Destroyed 7 combat bots 2371 | -8/Materials | Discovered new exit (range 13) 2469 | -8/Materials | Lost 4 parts (1p1n2u) 2595 | -8/Materials | Discovered new exit (range 13) 2898 | -8/Materials | Lost 4 parts (1p1n2w) 3136 | -8/Materials | Discovered new exit (range 11) 3155 | -8/Materials | Identified exit to Factory 3191 | -8/Materials | First assault squad dispatched 3205 | -8/Materials | Core integrity fell below 50% 3229 | -8/Materials | Entered Factory 3229 | -7/Factory | Evolved 2 slots: Propulsion x1, Utility x1 3259 | -7/Factory | Lost 5 parts (1p3u1w) 3572 | -7/Factory | Lost 4 parts (1n2u1w) 4080 | -7/Factory | Lost 5 parts (1p1n1u2w) 4273 | -7/Factory | Crushed by falling debris 4303 | -7/Factory | Discovered new exit (range 3) 4304 | -7/Factory | Lost 3 parts (3u) 4356 | -7/Factory | Identified exit to Factory 4363 | -7/Factory | Entered another Factory area 4363 | -6/Factory | Evolved 2 slots: Utility x2 4540 | -6/Factory | Lost 3 parts (1p1n1u) 4662 | -6/Factory | Spotted B-75 Beast 4670 | -6/Factory | Build established: Skirmisher 4696 | -6/Factory | Destroyed B-75 Beast 4726 | -6/Factory | Lost 3 parts (1p1n1u) 5484 | -6/Factory | Build established: Mutant 5555 | -6/Factory | Found Prototype Processor 5555 | -6/Factory | Identified Exp. Targeting Computer 5559 | -6/Factory | Found Exp. Targeting Computer 5563 | -6/Factory | Found Exp. Targeting Computer 5681 | -6/Factory | Lost 3 parts (2u1w) 5909 | -6/Factory | Discovered new exit (range 16) 5966 | -6/Factory | Build established: Scavenger-Mutant 5991 | -6/Factory | Identified exit to Extension 6068 | -6/Factory | Entered Extension 6113 | -6/Extension | Core integrity fell below 50% 6160 | -6/Extension | Rescued a captive Derelict 6217 | -6/Extension | Rescued a captive Derelict 6573 | -6/Extension | Lost 3 parts (1n2u) 6697 | -6/Extension | Spotted B-75 Beast 6712 | -6/Extension | Spotted B-75 Beast 6741 | -6/Extension | Destroyed B-75 Beast 6789 | -6/Extension | Lost 5 parts (1n1u3w) 6854 | -6/Extension | Discovered new exit (range 3) 6854 | -6/Extension | Identified exit to Factory 7363 | -6/Extension | Rescued a captive Derelict 7363 | -6/Extension | Rescued a captive Derelict 7396 | -6/Extension | Rescued A7 7430 | -6/Extension | Rescued a captive Derelict 7489 | -6/Extension | Discovered exit to Factory (range 10) 7491 | -6/Extension | Discovered new exit (range 6) 7499 | -6/Extension | Identified exit to Cetus 7529 | -6/Extension | Entered Cetus 7529 | -6/Cetus | Accompanied by 12 allies (A7) 7534 | -6/Cetus | Acquired a Cetus Manufacturing Module code from A7 7552 | -6/Cetus | Spotted Cetus Guard 7552 | -6/Cetus | Spotted Cetus Guard 7555 | -6/Cetus | Spotted Cetus Guard 7555 | -6/Cetus | Spotted Cetus Guard 7563 | -6/Cetus | Allies destroyed Cetus Guard 7568 | -6/Cetus | Allies destroyed Cetus Guard 7575 | -6/Cetus | Allies destroyed Cetus Guard 7576 | -6/Cetus | Allies destroyed Cetus Guard 7675 | -6/Cetus | Started Cetus Manufacturing Module 7700 | -6/Cetus | Manufactured an Enhanced Grunt 7725 | -6/Cetus | Manufactured an Enhanced Grunt 7750 | -6/Cetus | Manufactured an Enhanced Grunt 7775 | -6/Cetus | Manufactured an Enhanced Grunt 7800 | -6/Cetus | Manufactured an Enhanced Grunt 7849 | -6/Cetus | Discovered new exit (range 16) 7885 | -6/Cetus | Spotted Cetus Guard 7886 | -6/Cetus | Spotted Cetus Guard 7888 | -6/Cetus | Spotted Cetus Guard 7888 | -6/Cetus | Spotted Cetus Guard 7897 | -6/Cetus | Discovered exit to Factory (range 16) 7900 | -6/Cetus | Allies destroyed Cetus Guard 7902 | -6/Cetus | Allies destroyed Cetus Guard 7903 | -6/Cetus | Allies destroyed Cetus Guard 7910 | -6/Cetus | Met Revision 17 8001 | -6/Cetus | Identified exit to Archives 8006 | -6/Cetus | Build established: Commander-Mutant 8006 | -6/Cetus | Entered Archives 8006 | -6/Archives | Accompanied by 10 allies (A7) 8070 | -6/Archives | Unable to access archive contents 8073 | -6/Archives | Discovered new exit (range 16) 8090 | -6/Archives | Discovered exit to Factory (range 16) 8118 | -6/Archives | Discovered new exit (range 16) 8195 | -6/Archives | Identified exit to Hub_04(d) 8331 | -6/Archives | Entered Factory 8331 | -5/Factory | Accompanied by 8 allies 8331 | -5/Factory | Evolved 2 slots: Propulsion x1, Utility x1 8764 | -5/Factory | Fabricated Imp. Hacking Suite (x1) 8831 | -5/Factory | Spotted B-75 Beast 8844 | -5/Factory | Allies destroyed B-75 Beast 8931 | -5/Factory | First assault squad dispatched 8943 | -5/Factory | Garrison activated, responded to threat 9062 | -5/Factory | Self-destructed Last Messages --------------- 08976_ R-10 Processor collects Imp. Launcher Guidance Computer. 08977_ Acquired 6 matter. 08980_ Slug penetrates Enhanced Grunt. 08980_ Slug penetrates Fabricator. 08982_ Connecting with Garrison Access... >>Seal Access door sealed. 08984_ Enhanced Grunt destroyed. 08984_ Slug penetrates Enhanced Grunt. 08988_ H-66 Slayer destroyed. 09024_ Enhanced Grunt triggered Stasis Trap. 09024_ A bubble of rippling energy engulfs the area. 09024_ Field strength at 85. 09025_ Field strength at 70. 09026_ Field strength at 55. 09027_ Field strength at 40. 09028_ Field strength at 25. 09029_ Field strength at 10. 09030_ Stasis field depleted. 09037_ Dropped Bore Cannon. Map ----- +----------------------------------------------------+ | ?????????????????????????????????????????????? | | ?????????????????????????????????????????????? | | ?????????????????????????????????????????????? | | ?????????????????????????????????????????????? | | ?????????????????????????????????????????????? | | ?????????????????????????????????????????????? | | ?????????????????????????????????????????????? | | ?????????????????????????????????????????????? | | ?????????????????????????????????????????????? | | ?????????????????????????????????????????????? | | ?????????????????????????????????????????????? | | ?????????????????????????????????????????????? | | ?????????????????????????????????????????????? | | ?????????????????????????????????????????????? | | ??????????????#??????????????????????????????? | | ??????????????# ????????????????????????????? | | ??????????????# ???????????????????????????? | | ??????????????# ?????????????????????????? | | ??????????????# #???########?????????????? | | ??????????????# #???# ???????????? | | ??????????????# #???# """ ""???????????? | | ?????????###### ##### """ """??????????? | | ???????? # """ """??????????? | | ???????? # ???????????? | | ???????? # """ ""???????????? | | ???????? gg@ """ ""???????????? | | ???????? # """ ""???????????? | | ???????? #! ???????????? | | ???????? # ! ?????????? | | ?????????######## # ????????? | | ????????????????# # ! ! #???????? | | ????????????????# ##############???????? | | ????????????#####+#####+###??????????????????? | | ????????????# ]#??????????????????? | | ??????""" +/ """"""" #??????????????????? | | ??? # """"""" ! #??????????????????? | | ?? """""" ??#[ """"""" #??????????????????? | | ??????""????# """"""" !/#??????????????????? | | ????????????# !*#??????????????????? | | ??????"?????####+############????????????????? | | ?????? ???????# + #????????????????? | | ?????? ???????# # #????????????????? | | #######+#?????# + """" #????????????????? | | # #?????# # """" ?????????????????? | | " # #?????# # """"??????????????????? | | Y" # ####### # """" #????????????????? | | "" # # ??????????????????? | | ?? ! #% [ ?????????????????? | | ???#+# "" "" "##########????????????????? | | #### "F"" ## #????????????????? | +----------------------------------------------------+ Best States ------------- Heat Dissipation 123 Coolant Potential 65 Energy Generation 25 Energy Capacity 350 Matter Stores 500 Matter Capacity 500 Sight Range 20 Robot Scan Range 20 Terrain Scan Density 10 Additional Mass Support 12 Armor Coverage 825 Resistance: KI 30 Resistance: TH 20 Core Shielding 20 Utility Shielding 33 Weapon Shielding 66 Weapon Cycling 15 Phase Shifting 5 Evasion (%) 49 Targeting Accuracy 24 Melee Accuracy 8 Recoil Reduction 3 Particle Charging 15 Offensive Hacking 12 Item Schematics ----------------- Imp. Hacking Suite | -6/Extension | Hacked Robot Schematics ------------------ None Fabricated ------------ Imp. Hacking Suite | x1 | -5/Factory Alien Tech Used ----------------- None Achievements -------------- Prison Break Project G-00 Revising The Future Challenges ------------ None Game ------ Seed VortexAssemblyShockpuncher Manual? 0 Play Time 01:28:58 Cumulative 165.7 hours Start 2020.09.11 @ 21:09:49 End 2020.10.11 @ 22:05:34 Sessions 22 Manual Loads 0 Difficulty Rogue Special Mode None Game No. 195 Rogue 152 Adventurer 32 Explorer 11 Win Type - Total 3 Types 2/0/1/0/0/0/0/0/0 Lore% 60 Gallery% 81 Achievement% 41 Wizard Run 0 Options --------- ASCII 0 Keyboard 0 Movement Numpad Keybinds 0 Fullscreen 1 Font 18/Smallcaps Map View 76x50 Tactical HUD 1 Map Filters NONE Filters NONE Steam 1 RUN: cec267e5-075c-40b6-89bc-a87704b6fbaa